bitfinex/quotes_SOLUSD_20260310
["timestamp","ask_amount","ask_price","bid_price","bid_amount"]
[1773101567679,2.26365989,84.933,84.914,11.77662105]
[1773101572378,2.26365989,84.949,84.915,1.35569598]
[1773101573877,2.26365989,84.946,84.917,1.35559073]
[1773101575983,2.26365989,84.946,84.918,11.77606632]
[1773101576169,11.77232326,84.945,84.918,13.13155421]
[1773101576370,2.26365989,84.944,84.918,13.13155421]
[1773101576566,2.26365989,84.944,84.918,11.77606632]
[1773101576777,2.26365989,84.944,84.919,1.35543735]
[1773101579084,2.26365989,84.944,84.92,11.77578897]
[1773101580899,2.26365989,84.944,84.92,1.35524094]
[1773101581074,2.26365989,84.961,84.931,1.35524094]
[1773101581269,2.26365989,84.979,84.941,1.35524094]
[1773101582676,2.26365989,84.977,84.943,1.35519324]
[1773101583989,11.76775165,84.978,84.943,1.35519324]
[1773101583990,2.30124031,84.969,84.943,1.35519324]
[1773101584480,2.30124031,84.969,84.943,1.35505339]
[1773101585593,2.30124031,84.969,84.945,1.35500784]
[1773101588998,2.30124031,84.969,84.947,1.35483083]
[1773101589300,2.30124031,84.979,84.947,1.35483083]
[1773101589801,2.30124031,84.977,84.947,1.35483083]
[1773101590296,2.30124031,84.982,84.951,1.35478783]
[1773101590500,2.30124031,84.982,84.961,1.35478783]
[1773101591711,2.30124031,84.994,84.963,1.35474534]
[1773101591885,2.30124031,85.0,84.971,1.35470333]
[1773101592397,2.30124031,85.019,84.981,1.35470333]
[1773101592585,4.25735653,85.01,84.981,1.35470333]
[1773101592904,2.30124031,85.009,84.981,1.35470333]
[1773101593402,4.25735653,85.01,84.97,4.25735653]
[1773101593403,2.30124031,85.007,84.983,1.3546618]
[1773101594685,2.30124031,85.005,84.978,1.35462075]
[1773101596807,2.30124031,85.005,84.98,1.35454006]
[1773101598694,2.30124031,85.005,84.982,1.35446121]
[1773101600089,1.80124031,85.005,84.982,1.35446121]
[1773101600509,11.76083172,85.028,84.982,1.35446121]
[1773101600706,11.76083172,85.028,84.96,4.25735653]
[1773101600707,11.76035952,85.032,85.001,1.85438417]
[1773101601293,11.76069341,85.029,85.001,1.85438417]
[1773101601492,11.76069341,85.029,84.984,1.85434631]
[1773101601493,4.25735653,85.02,84.984,1.85434631]
[1773101602006,2.30124031,85.019,84.984,1.85434631]
[1773101603397,2.30124031,84.999,84.95,11.77163037]
[1773101603592,2.30124031,84.999,84.961,1.85427188]
[1773101604897,2.30124031,84.997,84.963,1.85419916]
[1773101607211,2.30124031,84.979,84.945,1.85457207]
[1773101607719,2.30124031,84.979,84.947,22.70333731]
[1773101607896,2.30124031,84.979,84.952,1.85475531]
[1773101608915,2.30124031,84.989,84.952,1.85475531]
[1773101609112,2.30124031,84.989,84.961,1.85493646]
[1773101609615,2.30124031,84.987,84.963,1.85493646]
[1773101609914,2.30124031,84.979,84.956,11.77067075]
[1773101613700,11.76636701,84.988,84.948,11.77190751]
[1773101613701,2.14194911,84.969,84.948,11.77190751]
[1773101614625,2.14194911,84.969,84.947,20.84876524]
[1773101615908,2.14194911,84.959,84.947,20.84876524]
[1773101616110,2.14194911,84.959,84.925,2.30576566]
[1773101617024,2.14194911,84.967,84.931,2.30576566]
[1773101617209,2.14194911,84.973,84.941,2.30576566]
[1773101618723,11.76456747,85.001,84.961,2.30576566]
[1773101618903,4.2581142,84.99,84.951,2.30576566]
[1773101619620,4.2581142,84.98,84.945,2.30576566]
[1773101619923,4.2581142,84.97,84.939,2.30576566]
[1773101620217,4.2581142,84.96,84.939,2.30576566]
[1773101620827,6.40006331,84.96,84.94,11.77301624]
[1773101621021,2.14194911,84.959,84.94,11.77301624]
[1773101624344,2.14194911,84.968,84.941,2.30576566]
[1773101625728,2.14194911,84.968,84.943,2.30576566]
[1773101626834,4.2581142,84.97,84.943,2.30576566]
[1773101627120,6.38797327,84.97,84.943,2.30576566]
[1773101627321,11.7689981,84.969,84.943,2.30576566]
[1773101628523,11.7689981,84.969,84.914,58.88270278]
[1773101628524,2.12985907,84.978,84.945,2.24815116]
[1773101628712,11.76789013,84.977,84.945,2.24815116]
[1773101629028,2.12985907,84.969,84.945,2.24815116]
[1773101629522,2.12985907,84.969,84.944,11.77246185]
[1773101631122,2.12985907,84.967,84.944,2.24815116]
[1773101632627,2.12985907,84.968,84.944,2.24815116]
[1773101633830,2.12985907,84.959,84.926,2.24815116]
[1773101636232,11.76927513,84.967,84.93,4.2581142]
[1773101636421,2.12985907,84.966,84.931,2.24815116]
[1773101638333,2.12985907,84.966,84.933,2.24815116]
[1773101639819,11.76955216,84.965,84.933,2.24815116]
[1773101640018,2.12985907,84.964,84.933,2.24815116]
[1773101640635,2.12985907,84.964,84.934,11.77384792]
[1773101640941,2.12985907,84.964,84.935,2.24815116]
[1773101642139,2.12985907,84.962,84.935,2.24815116]
[1773101647437,2.12985907,84.962,84.937,2.28024646]
[1773101650221,2.12985907,84.962,84.939,2.28024646]
[1773101653354,2.18987805,84.949,84.901,41.22448498]
[1773101653525,2.18987805,84.949,84.91,4.2581142]
[1773101655328,2.18987805,84.949,84.912,41.21914452]
[1773101655646,2.18987805,84.949,84.913,2.28024646]
[1773101656955,2.18987805,84.959,84.921,2.28024646]
[1773101657129,2.18987805,84.974,84.94,4.2581142]
[1773101657328,2.18987805,84.974,84.941,2.28024646]
[1773101658432,2.18987805,84.972,84.943,2.28024646]
[1773101659248,2.18987805,84.969,84.943,2.28024646]
[1773101660041,2.18987805,84.969,84.942,11.77273904]
[1773101660757,2.18987805,84.969,84.943,2.28024646]
[1773101662245,2.18987805,84.967,84.934,2.28024646]
[1773101663450,2.18987805,84.967,84.941,2.28024646]
[1773101667147,2.18987805,84.959,84.943,2.28024646]
[1773101669555,2.18987805,84.959,84.944,11.77246185]
[1773101669855,2.18987805,84.959,84.944,14.05270831]
[1773101670052,2.18987805,84.959,84.944,11.77246185]
[1773101670353,2.18987805,84.964,84.945,2.28024646]
[1773101671653,2.18987805,84.969,84.947,2.28024646]
[1773101673762,2.18987805,84.969,84.949,2.27536551]
[1773101674955,2.10701071,84.969,84.949,2.27536551]
[1773101675163,11.76761317,84.979,84.949,2.27536551]
[1773101677064,2.27189827,84.978,84.951,2.27536551]
[1773101677263,11.76789013,84.977,84.95,11.77163037]
[1773101677465,11.76789013,84.977,84.944,0.03]
[1773101677466,2.27189827,84.959,84.944,0.03]
[1773101677965,3.69383402,84.996,84.944,0.03]
[1773101677966,4.25890866,84.98,84.946,2.27536551]
[1773101678344,2.27189827,84.979,84.946,2.27536551]
[1773101679057,2.27189827,84.977,84.944,0.03]
[1773101679267,41.18713078,84.978,84.912,2.27536551]
[1773101679268,2.27189827,84.949,84.912,2.27536551]
[1773101679452,2.27189827,84.939,84.912,2.27536551]
[1773101680769,2.27189827,84.939,84.914,2.27536551]
[1773101683461,2.27189827,84.939,84.916,2.27536551]
[1773101684857,2.27189827,84.929,84.905,2.27536551]
[1773101685565,2.27189827,84.929,84.907,2.27536551]
[1773101688372,2.27189827,84.929,84.909,2.27536551]
[1773101689657,2.27189827,84.929,84.9,0.1]
[1773101689872,2.27189827,84.929,84.9,11.87848908]
[1773101690075,2.27189827,84.929,84.9,0.1]
[1773101690577,2.27189827,84.929,84.901,2.27536551]
[1773101691778,2.27189827,84.929,84.903,2.25572358]
[1773101693781,2.27189827,84.929,84.904,14.03373168]
[1773101694664,2.27189827,84.929,84.905,2.25572358]
[1773101695968,2.17043785,84.927,84.9,14.13420416]
[1773101696163,2.17043785,84.927,84.901,2.25572358]
[1773101697469,4.25890866,84.92,84.901,2.25572358]
[1773101697665,2.17043785,84.919,84.901,2.25572358]
[1773101697872,2.17043785,84.919,84.902,14.03400913]
[1773101698071,2.17043785,84.919,84.903,2.25572358]
[1773101698677,4.25890866,84.93,84.903,2.25572358]
[1773101698678,11.77467505,84.929,84.903,2.25572358]
[1773101698864,2.17043785,84.928,84.903,2.25572358]
[1773101700889,2.17043785,84.928,84.905,2.25572358]
[1773101701087,8.00374267,84.939,84.906,2.25572358]
[1773101701266,5.91261429,84.939,84.921,2.25572358]
[1773101702168,7.92121146,84.964,84.931,2.25572358]
[1773101702766,4.25890866,84.96,84.931,2.25572358]
[1773101703278,2.17043785,84.957,84.933,2.25572358]
[1773101704586,7.92121146,84.964,84.941,2.25920344]
[1773101705077,7.92121146,84.964,84.942,11.77273904]
[1773101705283,7.92121146,84.964,84.943,2.25920344]
[1773101706390,2.14345034,85.02,84.95,4.25890866]
[1773101706698,2.14345034,84.989,84.961,2.25920344]
[1773101707992,2.14345034,85.002,84.97,4.25890866]
[1773101708178,11.76441236,85.003,84.963,2.25920344]
[1773101708179,2.14345034,84.999,84.963,2.25920344]
[1773101720197,2.14345034,84.997,84.965,2.25920344]
[1773101721210,2.14345034,84.997,84.964,11.76969069]
[1773101721211,2.14345034,84.979,84.931,2.25920344]
[1773101721419,2.14345034,84.949,84.926,2.25920344]
[1773101721604,4.25890866,84.94,84.921,11.77565031]
[1773101721932,4.25890866,84.94,84.921,14.03485375]
[1773101723418,2.14345034,84.938,84.909,2.25920344]
[1773101723618,4.25890866,84.92,84.902,2.25920344]
[1773101723909,2.14345034,84.924,84.902,2.25920344]
[1773101724498,2.14345034,84.924,84.904,2.25920344]
[1773101724708,4.25890866,84.95,84.911,2.25920344]
[1773101725008,2.14345034,84.952,84.911,2.25920344]
[1773101725906,2.14345034,84.952,84.913,2.25920344]
[1773101726218,2.14345034,84.952,84.921,2.25920344]
[1773101726422,11.77066886,84.957,84.921,2.25920344]
[1773101726795,2.14345034,84.958,84.921,2.25920344]
[1773101727002,2.14345034,84.96,84.931,2.25920344]
[1773101727518,4.25890866,84.97,84.931,2.25920344]
[1773101728193,4.25890866,84.96,84.933,2.25920344]
[1773101728603,4.25890866,84.95,84.915,2.25920344]
[1773101729492,4.57815434,84.95,84.915,2.25920344]
[1773101729812,0.31924568,84.95,84.92,4.25890866]
[1773101730019,0.31924568,84.95,84.921,2.25920344]
[1773101730318,0.31897564,84.958,84.923,2.25920344]
[1773101731916,0.31844483,84.963,84.923,2.25920344]
[1773101732113,0.31844483,84.963,84.933,2.25920344]
[1773101732507,4.26009321,84.96,84.933,2.25920344]
[1773101734817,0.31886047,84.959,84.935,2.31916593]
[1773101735018,0.31886047,84.949,84.924,2.31916593]
[1773101735523,0.31886047,84.958,84.924,2.31916593]
[1773101737524,0.3190612,84.977,84.951,2.31916593]
[1773101737719,2.29663689,84.969,84.93,4.26009321]
[1773101737907,2.29663689,84.949,84.91,4.26009321]
[1773101738726,2.29663689,84.959,84.92,4.26009321]
[1773101738903,2.29663689,84.971,84.94,4.26009321]
[1773101739522,2.29663689,84.971,84.941,11.77287764]
[1773101739523,11.76885959,84.97,84.941,11.77287764]
[1773101739822,11.76885959,84.97,84.942,2.31916593]
[1773101740022,2.29663689,84.97,84.942,2.31916593]
[1773101740919,2.29663689,84.969,84.942,2.31916593]
[1773101741808,2.29663689,84.969,84.943,11.77260044]
[1773101742121,2.29663689,84.967,84.942,2.31916593]
[1773101742625,2.29663689,84.967,84.941,11.77276641]
[1773101743829,7.84865232,84.978,84.941,11.77276641]
[1773101743830,11.76069341,85.029,84.961,2.31916593]
[1773101744122,7.90760091,85.02,85.001,2.31916593]
[1773101744320,2.76027039,85.02,85.011,2.31916593]
[1773101744516,4.46009321,85.04,85.011,2.31916593]
[1773101744825,4.26009321,85.02,84.991,2.31916593]
[1773101745919,2.29663689,85.017,84.992,11.76581325]
[1773101746515,2.29663689,85.017,84.987,11.76642606]
[1773101747428,2.29663689,85.017,84.99,4.26009321]
[1773101747628,2.29663689,85.017,84.988,2.16333432]
[1773101748732,2.1491684,85.015,84.972,11.76858259]
[1773101748936,4.26009321,84.99,84.95,4.26009321]
[1773101749132,4.26009321,84.99,84.93,117.74402447]
[1773101749133,6.40926161,84.99,84.96,4.26009321]
[1773101749318,2.1491684,84.99,84.96,4.26009321]
[1773101750927,2.1491684,84.99,84.963,2.16333432]
[1773101751524,2.1491684,85.023,84.963,2.16333432]
[1773101751726,47.01925939,85.072,84.993,2.16333432]
[1773101751727,2.1491684,85.029,84.993,2.16333432]
[1773101751953,2.1491684,85.029,84.99,4.26009321]
[1773101752319,2.1491684,85.029,84.991,2.16333432]
[1773101753822,2.1491684,85.027,84.993,2.16333432]
[1773101756340,2.1491684,85.025,84.994,11.76553639]
[1773101759826,2.1491684,85.023,84.994,13.92887071]
[1773101760337,2.1491684,85.023,84.995,2.16333432]
[1773101761347,2.1491684,85.023,85.0,6.42342753]
[1773101762128,2.1491684,85.023,85.002,2.16333432]
[1773101763429,13.97166174,85.029,85.004,2.28774448]
[1773101763631,2.21092091,85.028,85.004,2.28774448]
[1773101767042,4.46009321,85.03,85.005,11.76401388]
[1773101767043,0.2,85.03,85.005,11.76401388]
[1773101767349,2.21092091,85.029,85.005,43.46179306]
[1773101767543,2.21092091,85.029,85.006,2.28774448]
[1773101767848,0.2,85.03,85.011,2.28774448]
[1773101770028,0.2,85.04,85.013,2.28774448]
[1773101770234,0.2,85.05,85.031,2.28774448]
[1773101770434,10.01392534,85.056,85.031,2.28774448]
[1773101770636,2.21092091,85.079,85.052,2.28774448]
[1773101771350,0.2,85.08,85.07,2.28774448]
[1773101771539,0.2,85.08,85.071,2.28774448]
[1773101771738,0.2,85.09,85.071,2.28774448]
[1773101772151,0.2,85.09,85.073,2.28774448]
[1773101772330,2.21092091,85.089,85.061,11.75626903]
[1773101774744,2.21092091,85.089,85.062,2.28774448]
[1773101775346,2.21092091,85.089,85.061,41.1469416]
[1773101776452,2.21092091,85.089,85.062,2.28774448]
[1773101776655,2.21092091,85.089,85.07,4.26009321]
[1773101777149,0.2,85.09,85.071,2.28774448]
[1773101778237,0.2,85.09,85.072,11.75474891]
[1773101779736,2.41092091,85.09,85.072,11.75474891]
[1773101780755,2.41092091,85.09,85.064,2.28774448]
[1773101780756,2.41092091,85.09,85.065,11.75571621]
[1773101780949,2.41092091,85.09,85.066,2.28774448]
[1773101781151,2.41092091,85.09,85.07,4.26009321]
[1773101781458,2.41092091,85.09,85.071,2.28774448]
[1773101781459,0.2,85.09,85.071,2.28774448]
[1773101783056,0.2,85.09,85.072,11.75474891]
[1773101783373,2.41092091,85.09,85.072,11.75474891]
[1773101784659,0.2,85.09,85.072,14.04249339]
[1773101785536,2.41092091,85.09,85.072,11.75474891]
[1773101786661,2.41092091,85.09,85.073,2.28774448]
[1773101786662,0.2,85.09,85.073,2.28774448]
[1773101786859,0.2,85.09,85.074,11.75447257]
[1773101787968,2.41092091,85.09,85.07,11.7549991]
[1773101788158,2.21092091,85.109,85.08,4.26009321]
[1773101788462,2.21092091,85.116,85.091,2.28774448]
[1773101789046,2.21092091,85.116,85.092,11.75198608]
[1773101791963,2.21092091,85.114,85.086,11.75270611]
[1773101792162,0.2,85.12,85.101,2.28774448]
[1773101792353,46.95530325,85.188,85.111,2.28774448]
[1773101792354,2.31092091,85.14,85.111,2.28774448]
[1773101792659,2.21092091,85.169,85.131,2.28774448]
[1773101792860,52.9,85.202,85.131,2.28774448]
[1773101792861,2.21092091,85.163,85.131,2.28774448]
[1773101793061,19.23715213,85.164,85.116,2.28774448]
[1773101793062,2.21092091,85.149,85.116,2.28774448]
[1773101793245,2.09021051,85.139,85.109,2.28774448]
[1773101793451,2.09021051,85.139,85.101,2.09589804]
[1773101793972,2.09021051,85.129,85.093,2.09589804]
[1773101794269,2.09021051,85.109,85.085,11.75295292]
[1773101795368,2.09021051,85.109,85.086,2.09589804]
[1773101795763,2.09021051,85.109,85.081,61.78913649]
[1773101796062,3.69383402,85.147,85.081,61.78913649]
[1773101796063,2.09021051,85.099,85.081,61.78913649]
[1773101796468,2.09021051,85.099,85.082,11.75336733]
[1773101796672,4.2419739,85.11,85.083,2.09589804]
[1773101796996,2.09021051,85.145,85.101,2.09589804]
[1773101797163,2.09021051,85.145,85.121,11.74798228]
[1773101797470,13.83494906,85.145,85.122,2.09589804]
[1773101797770,2.09021051,85.144,85.116,11.74860037]
[1773101798564,2.09021051,85.144,85.116,13.84449841]
[1773101799369,2.09021051,85.142,85.116,13.84449841]
[1773101800455,11.74494673,85.143,85.056,47.02773149]
[1773101800456,2.09021051,85.139,85.101,2.09589804]
[1773101800655,2.09021051,85.129,85.101,2.09589804]
[1773101801579,2.09021051,85.119,85.091,2.09589804]
[1773101801778,2.09021051,85.119,85.091,13.84802223]
[1773101802072,2.09021051,85.109,85.091,11.75212419]
[1773101802958,2.09021051,85.119,85.092,2.09589804]
[1773101803479,2.09021051,85.117,85.093,11.75184797]
[1773101804361,2.09021051,85.109,85.093,11.75184797]
[1773101805565,2.09021051,85.109,85.085,2.09589804]
[1773101805566,2.09021051,85.109,85.086,11.75281479]
[1773101805876,2.09021051,85.109,85.086,13.84871283]
[1773101806869,2.09021051,85.109,85.087,2.09589804]
[1773101807066,2.09021051,85.117,85.087,2.09589804]
[1773101809060,2.09021051,85.117,85.091,13.84802223]
[1773101809758,2.09021051,85.117,85.092,2.09589804]
[1773101810465,2.15413682,85.115,85.092,2.09589804]
[1773101811376,2.15413682,85.115,85.094,2.11399021]
[1773101812574,11.74857557,85.117,85.094,2.11399021]
[1773101812755,2.15413682,85.109,85.089,11.75238534]
[1773101812957,2.15413682,85.109,85.084,11.75296938]
[1773101813152,2.15413682,85.168,85.104,2.11399021]
[1773101813356,2.15413682,85.166,85.14,4.2419739]
[1773101813572,2.15413682,85.159,85.12,4.2419739]
[1773101813778,2.15413682,85.159,85.121,11.74798228]
[1773101814074,2.15413682,85.159,85.121,13.86197249]
[1773101814281,2.15413682,85.159,85.121,43.2319282]
[1773101815172,2.15413682,85.159,85.122,2.11399021]
[1773101815361,2.15413682,85.159,85.13,6.35596411]
[1773101815560,2.15413682,85.157,85.131,11.74660229]
[1773101817978,2.15413682,85.165,85.14,6.35596411]
[1773101818176,4.2419739,85.16,85.13,4.2419739]
[1773101818493,2.15413682,85.159,85.122,2.11399021]
[1773101819387,2.15413682,85.159,85.131,2.11399021]
[1773101819569,2.15413682,85.166,85.141,2.11399021]
[1773101820179,0.1,85.17,85.151,2.11399021]
[1773101820380,7.32892264,85.19,85.161,2.11399021]
[1773101820566,7.32892264,85.19,85.16,4.2419739]
[1773101820567,4.2419739,85.21,85.18,6.35596411]
[1773101820968,41.07065324,85.219,85.181,2.11399021]
[1773101821359,4.2419739,85.21,85.181,2.11399021]
[1773101821578,2.15413682,85.189,85.15,4.2419739]
[1773101821962,2.15413682,85.188,85.151,41.10345151]
[1773101822674,2.15413682,85.179,85.151,41.10345151]
[1773101822880,2.15413682,85.179,85.151,11.74384329]
[1773101823060,4.2419739,85.16,85.13,4.2419739]
[1773101823266,2.15413682,85.167,85.13,4.2419739]
[1773101823468,2.15413682,85.167,85.131,2.23447049]
[1773101823784,2.07994866,85.159,85.121,2.23447049]
[1773101824480,11.35425616,85.16,85.121,2.23447049]
[1773101824481,2.07994866,85.157,85.122,11.74784427]
[1773101824882,2.07994866,85.149,85.122,11.74784427]
[1773101826975,2.07994866,85.149,85.12,11.35425616]
[1773101828183,2.07994866,85.149,85.116,29.37159508]
[1773101829787,2.07994866,85.147,85.116,29.37159508]
[1773101831309,2.07994866,85.159,85.13,11.35425616]
[1773101831588,2.07994866,85.159,85.131,2.23447049]
[1773101831792,2.07994866,85.159,85.132,11.74646431]
[1773101833199,2.07994866,85.149,85.121,11.74798228]
[1773101835994,2.07994866,85.157,85.131,2.23447049]
[1773101836589,2.07994866,85.157,85.124,2.23447049]
[1773101838079,2.07994866,85.157,85.125,41.11600586]
[1773101838377,2.07994866,85.157,85.126,2.23447049]
[1773101838799,2.07994866,85.157,85.13,11.35425616]
[1773101838980,2.07994866,85.169,85.14,11.35425616]
[1773101839381,2.07994866,85.169,85.141,2.23447049]
[1773101840294,11.35425616,85.18,85.14,11.35425616]
[1773101840295,2.07994866,85.179,85.143,2.23447049]
[1773101840682,2.07994866,85.179,85.151,2.23447049]
[1773101840897,35.34,85.271,85.142,41.10779638]
[1773101840898,2.07994866,85.189,85.17,11.35425616]
[1773101841111,2.07994866,85.199,85.171,2.23447049]
[1773101841398,13.43420482,85.18,85.15,11.35425616]
[1773101841605,2.07994866,85.179,85.15,11.35425616]
[1773101841982,2.07994866,85.179,85.151,2.23447049]
[1773101842900,2.07994866,85.179,85.152,41.1029688]
[1773101843792,2.07994866,85.179,85.152,43.33743929]
[1773101843990,2.07994866,85.179,85.152,11.74370537]
[1773101844402,2.07994866,85.178,85.152,11.74370537]
[1773101844894,2.07994866,85.178,85.142,2.23447049]
[1773101845099,2.07994866,85.176,85.142,2.23447049]
[1773101845298,2.07994866,85.169,85.141,11.74522263]
[1773101845684,2.07994866,85.159,85.141,11.74522263]
[1773101845983,2.07994866,85.149,85.12,11.35425616]
[1773101846182,2.07994866,85.149,85.121,2.23447049]
[1773101846879,2.07994866,85.149,85.122,43.35192543]
[1773101847080,2.07994866,85.149,85.13,11.35425616]
[1773101847799,2.07994866,85.162,85.14,13.58872665]
[1773101848183,2.07994866,85.171,85.15,11.35425616]
[1773101848699,2.07994866,85.171,85.147,2.23447049]
[1773101848904,2.07994866,85.171,85.141,41.1082792]
[1773101849203,2.07994866,85.171,85.141,43.34274969]
[1773101852892,2.07994866,85.171,85.141,41.1082792]
[1773101853091,2.07994866,85.171,85.141,43.34274969]
[1773101853491,2.07994866,85.171,85.142,2.19007247]
[1773101855483,2.15881969,85.159,85.136,11.74591242]
[1773101857294,2.15881969,85.159,85.02,70.57161439]
[1773101857295,2.15881969,85.149,85.122,11.74784427]
[1773101857492,2.15881969,85.149,85.124,13.93764072]
[1773101857705,2.15881969,85.149,85.124,43.30656135]
[1773101858207,2.15881969,85.149,85.124,13.93764072]
[1773101858915,2.15881969,85.129,85.11,11.74950064]
[1773101859204,41.10450565,85.149,85.093,11.75184797]
[1773101859205,2.15881969,85.119,85.093,11.75184797]
[1773101859408,4.23927676,85.11,85.093,11.75184797]
[1773101859606,13.52756924,85.11,85.086,11.75281479]
[1773101859907,2.15881969,85.109,85.086,11.75281479]
[1773101861607,2.15881969,85.109,85.087,2.19007247]
[1773101862488,2.15881969,85.109,85.086,41.13485178]
[1773101864206,2.15881969,85.109,85.086,11.75281479]
[1773101869020,11.36874955,85.12,85.087,2.0608496]
[1773101869517,11.36874955,85.11,85.087,2.0608496]
[1773101869923,11.36874955,85.11,85.086,11.75281479]
[1773101869924,11.74260216,85.16,85.101,2.0608496]
[1773101870098,11.36874955,85.16,85.121,2.0608496]
[1773101870400,11.36874955,85.17,85.14,11.36874955]
[1773101870598,11.74136129,85.169,85.132,13.80731391]
[1773101870817,11.74136129,85.169,85.133,2.0608496]
[1773101871119,2.21017882,85.168,85.133,2.0608496]
[1773101871618,2.21017882,85.168,85.141,2.0608496]
[1773101871818,2.21017882,85.178,85.141,2.0608496]
[1773101872038,2.21017882,85.169,85.141,2.0608496]
[1773101872916,2.21017882,85.169,85.142,11.74508468]
[1773101873903,2.21017882,85.167,85.117,2.0608496]
[1773101874115,11.36874955,85.15,85.121,2.0608496]
[1773101874302,2.21017882,85.152,85.121,2.0608496]
[1773101874504,2.21017882,85.159,85.121,2.0608496]
[1773101875703,2.21017882,85.159,85.123,2.0608496]
[1773101877514,2.21017882,85.159,85.131,2.0608496]
[1773101877714,2.21017882,85.157,85.132,11.74646431]
[1773101878017,2.21017882,85.157,85.132,43.17347469]
[1773101878226,2.21017882,85.157,85.133,2.0608496]
[1773101878602,2.21017882,85.157,85.132,11.74646431]
[1773101879217,2.21017882,85.157,85.133,2.0608496]
[1773101879921,2.21017882,85.157,85.134,11.74618836]
[1773101881018,2.21017882,85.155,85.134,11.74618836]
[1773101881314,2.21017882,85.155,85.129,29.36686049]
[1773101881521,2.21017882,85.139,85.097,2.0608496]
[1773101881716,2.21017882,85.119,85.097,2.0608496]
[1773101882021,2.21017882,85.119,85.084,2.0608496]
[1773101882398,2.21017882,85.119,85.085,41.13533524]
[1773101882605,2.21017882,85.119,85.091,2.0608496]
[1773101882914,4.23930903,85.13,85.101,2.0608496]
[1773101882915,2.21017882,85.129,85.101,2.0608496]
[1773101883504,46.95146494,85.195,85.086,2.18274816]
[1773101883705,11.35735505,85.16,85.121,2.18274816]
[1773101884827,11.35735505,85.15,85.122,11.74784427]
[1773101885117,11.74274005,85.159,85.123,2.18274816]
[1773101885306,11.35735505,85.17,85.131,2.18274816]
[1773101885511,2.04642429,85.169,85.131,2.18274816]
[1773101885913,13.40152006,85.16,85.131,2.18274816]
[1773101886811,11.74274005,85.159,85.132,13.92921247]
[1773101887007,2.04193167,85.192,85.151,2.18274816]
[1773101887207,2.04193167,85.197,85.161,2.18274816]
[1773101887408,2.04193167,85.179,85.141,2.18274816]
[1773101887830,2.04193167,85.179,85.132,41.11262509]
[1773101887831,11.35735505,85.16,85.133,2.18274816]
[1773101888007,2.04193167,85.169,85.133,2.18274816]
[1773101888708,11.35735505,85.17,85.141,2.18274816]
[1773101889432,2.03679333,85.169,85.142,11.74508468]
[1773101889729,2.03679333,85.168,85.143,2.18274816]
[1773101890112,11.35735505,85.17,85.143,2.18274816]
[1773101891417,13.7723939,85.169,85.144,11.74480879]
[1773101891612,2.03103261,85.215,85.146,2.18274816]
[1773101891818,2.03103261,85.218,85.18,11.35735505]
[1773101892024,2.02820178,85.209,85.17,2.18274816]
[1773101892219,2.02820178,85.209,85.17,13.54010321]
[1773101892804,2.02820178,85.209,85.171,2.18274816]
[1773101893216,2.02820178,85.209,85.17,11.35735505]
[1773101894015,2.02263729,85.199,85.171,11.74108558]
[1773101896639,2.02263729,85.199,85.172,2.18274816]
[1773101897212,11.7362627,85.206,85.172,2.18274816]
[1773101897415,11.7362627,85.206,85.171,11.74108558]
[1773101897416,2.01452794,85.199,85.171,11.74108558]
[1773101898913,2.00927576,85.198,85.165,11.74191275]
[1773101900240,2.00669483,85.189,85.159,11.74264783]
[1773101900421,2.00669483,85.189,85.159,9.73744077]
[1773101900614,2.00669483,85.189,85.149,2.21658783]
[1773101900925,11.35735505,85.19,85.151,2.21658783]
[1773101901433,11.35735505,85.18,85.151,2.21658783]
[1773101901645,11.35735505,85.19,85.151,2.21658783]
[1773101902326,11.73860474,85.189,85.152,11.74370537]
[1773101902534,11.73860474,85.189,85.153,2.21658783]
[1773101903236,11.35735505,85.19,85.153,2.21658783]
[1773101903439,11.73860474,85.189,85.153,2.21658783]
[1773101904028,11.35735505,85.19,85.153,2.21658783]
[1773101904234,11.35735505,85.2,85.161,2.21658783]
[1773101904423,11.35735505,85.19,85.162,11.74232638]
[1773101904629,11.35735505,85.19,85.163,2.21658783]
[1773101904829,11.73750249,85.197,85.162,11.74232638]
[1773101905145,11.35735505,85.19,85.156,13.9596936]
[1773101906719,11.73860474,85.189,85.156,13.9596936]
[1773101906915,46.91803734,85.256,85.157,2.21658783]
[1773101907141,11.35735505,85.19,85.161,2.21658783]
[1773101907436,11.35735505,85.19,85.157,2.21658783]
[1773101908627,11.35735505,85.18,85.157,2.21658783]
[1773101909827,11.35735505,85.19,85.159,2.21658783]
[1773101911340,11.35735505,85.18,85.159,2.21658783]
[1773101911522,44.76566773,85.217,85.161,2.21658783]
[1773101911723,11.35735505,85.19,85.161,2.21658783]
[1773101913429,11.35735505,85.2,85.161,2.21658783]
[1773101915341,11.73722696,85.199,85.163,2.21658783]
[1773101916044,11.35735505,85.19,85.163,2.21658783]
[1773101917349,11.35735505,85.19,85.154,29.35856615]
[1773101917350,11.35735505,85.2,85.165,2.21658783]
[1773101917539,11.34768948,85.19,85.165,2.21658783]
[1773101918350,11.34768948,85.19,85.166,11.74177488]
[1773101918551,11.34768948,85.19,85.167,2.21658783]
[1773101919253,11.34768948,85.18,85.161,2.21658783]
[1773101919643,11.73860474,85.189,85.163,2.21658783]